[Event "1st Serbian League 2022"]
[Site "Vrnjacka Banja"]
[Date "2022.09.22"]
[Round "3.12"]
[White "Todorovic, Jovan"]
[Black "Dimic, Pavle"]
[Result "1/2-1/2"]
[ECO "B88"]
[WhiteElo "2350"]
[BlackElo "2352"]
[Annotator "TA"]
[PlyCount "39"]
[EventDate "2022.09.20"]
[EventType "team-tourn"]
[EventCountry "SRB"]
[SourceTitle "playchess.com"]
[Source "ChessBase"]
[SourceQuality "1"]
[TimeControl "40/5400+30:1800+30"]

{[%evp 21,24,0,0,-48,-60]} 1. e4 {[%emt 0:00:56]} c5 {[%emt 0:00:08]} 2. Nf3 {[%emt 0:00:23]} d6 {[%emt 0:00:11]} 3. d4 {[%emt 0:00:31]} cxd4 {[%emt 0:00:07]} 4. Nxd4 {[%emt 0:00:15]} Nf6 {[%emt 0:00:09]} 5. Nc3 {[%emt 0:00:16]} Nc6 {[%emt 0:00:09]} 6. Bc4 {[%emt 0:00:19]} e6 {[%emt 0:00:09]} 7. Be3 {[%emt 0:00:19]} a6 {[%emt 0:11:03]} 8. Bb3 {[%emt 0:04:47]} Qc7 {[%emt 0:00:11]} 9. f4 {[%emt 0:13:47]} Be7 {[%emt 0:01:50]} 10. Qf3 {[%emt 0:05:26]} O-O {[%emt 0:05:37]} 11. O-O-O {[%emt 0:03:29]} b5 {[%emt 0:44:10][%cal Bb7b5,Bb5b4][%mdl 32]} 12. g4 {[%emt 0:18:33] B88: Sicilian: Sozin Attack.} (12. Nxc6 $11 {was preferrable.} Qxc6 13. e5 Qxf3 14. gxf3 dxe5 15. fxe5) 12... b4 $1 {[%emt 0:32:46] [#]} {Predecessor:} 13. Na4 $146 Bb7 14. Nxe6 fxe6 15. Bxe6+ Kh8 16. Bb6 Qb8 17. g5 Ng8 18. h4 Qe8 19. Bb3 Bd8 20. Rxd6 {0-1 (32) Almasi,I (2370)-Howell,J (2495) Budapest 1994} 1/2-1/2

[Event "1st Serbian League 2022"]
[Site "Vrnjacka Banja"]
[Date "2022.09.22"]
[Round "3.13"]
[White "Budisavljevic, Luka"]
[Black "Ioannidis, Evgenios"]
[Result "1/2-1/2"]
[ECO "D02"]
[WhiteElo "2524"]
[BlackElo "2486"]
[Annotator "TA"]
[PlyCount "45"]
[EventDate "2022.09.20"]
[EventType "team-tourn"]
[EventCountry "SRB"]
[SourceTitle "playchess.com"]
[Source "ChessBase"]
[SourceQuality "1"]
[TimeControl "40/5400+30:1800+30"]

{[%evp 11,45,0,13,12,6,14,14,2,27,11,11,8,20,0,10,4,14,0,0,0,0,-61,-56,-56,-53,-45,-54,-54,-54,-54,-58,-52,-43,-60,-47,-74]} 1. d4 {[%emt 0:00:04]} Nf6 {[%emt 0:00:12]} 2. Nf3 {[%emt 0:00:14]} d5 {[%emt 0:00:20]} 3. Bf4 {[%emt 0:00:20]} c5 {[%emt 0:00:44]} 4. e3 {[%emt 0:00:11]} Nc6 {[%emt 0:01:34]} 5. Nbd2 {[%emt 0:00:25]} e6 {[%emt 0:00:34]} 6. c3 {[%emt 0:00:16]} Nh5 $1 {[%emt 0:00:28][%mdl 4] 6...Nh5 is setting a new trend.} 7. Bg5 {[%emt 0:02:29] D02: 1 d4 d5 2 Nf3 sidelines, including 2...Nf6 3 g3 and 2...Nf6 3 Bf4.} f6 {[%emt 0:00:07]} 8. Bh4 {[%emt 0:00:10]} g6 {[%emt 0:00:07]} 9. Bd3 {[%emt 0:01:05][%cal Of3e5] The position is equal.} cxd4 {[%emt 0:00:26]} 10. cxd4 {[%emt 0:00:08][%cal Of3e5]} Bd6 {[%emt 0:00:19] Prevents Ne5.} 11. Rc1 {[%emt 0:02:41]} O-O {[%emt 0:05:04]} 12. O-O {[%emt 0:00:16]} Bd7 {[%emt 0:00:13]} 13. a3 {[%emt 0:04:27]} Rc8 {[%emt 0:02:44] [#]} 14. b4 $146 {[%emt 0:16:01][%cal Bb2b4,Bb4b5][%mdl 32]} ({Predecessor:} 14. Rc3 Qb6 15. Qb1 Ne7 16. Rxc8 Bxc8 17. Rc1 Nf5 18. Bg3 Nhxg3 19. hxg3 Bd7 20. Rc3 Rc8 21. Rb3 Qc7 22. Rc3 Qb6 23. Rb3 Qc7 24. Rc3 {½-½ (24) Svane,R (2637)-Sarana,A (2685) Germany 2022}) 14... a5 {[%emt 0:06:57]} (14... Be8 {feels hotter.} 15. g4 g5 16. gxh5 gxh4 17. Nxh4 f5) 15. b5 {[%emt 0:00:25]} Ne7 {[%emt 0:00:37]} 16. a4 {[%emt 0:01:01]} (16. Rxc8 $11 Qxc8 17. g4) 16... Rxc1 $15 {[%emt 0:01:51] Black is slightly better.} 17. Qxc1 {[%emt 0:00:05]} g5 {[%emt 0:01:21]} 18. Bg3 {[%emt 0:00:50]} Nxg3 {[%emt 0:00:12]} 19. hxg3 {[%emt 0:00:52]} g4 {[%emt 0:00:39]} 20. Ne1 {[%emt 0:08:36][%cal Bf3e1,Be1d3,Bd3f4][%mdl 32]} f5 {[%emt 0:08:49]} 21. Be2 {[%emt 0:01:19]} Ng6 {[%emt 0:03:05]} 22. Nd3 {[%emt 0:01:33]} b6 {[%emt 0:01:41]} 23. Nf4 {[%emt 0:14:05] Weighted Error Value: White=0.10 (very precise) /Black=0.03 (flawless)} 1/2-1/2

[Event "1st Serbian League 2022"]
[Site "Vrnjacka Banja"]
[Date "2022.09.22"]
[Round "3.14"]
[White "Damljanovic, Branko"]
[Black "Puranik, Abhimanyu"]
[Result "0-1"]
[ECO "B41"]
[WhiteElo "2436"]
[BlackElo "2603"]
[Annotator "TA"]
[PlyCount "96"]
[EventDate "2022.09.20"]
[EventType "team-tourn"]
[EventCountry "SRB"]
[SourceTitle "playchess.com"]
[Source "ChessBase"]
[SourceQuality "1"]
[TimeControl "40/5400+30:1800+30"]

{[%evp 13,96,34,53,35,43,39,37,16,33,0,0,0,23,0,11,-28,-27,-167,-158,-170,-156,-164,-161,-218,-169,-250,-272,-241,-193,-235,-240,-254,-255,-249,-239,-224,-222,-267,-236,-323,-289,-304,-216,-187,-146,-146,-148,-148,-131,-136,-96,-131,-119,-136,-31,-190,-190,-332,-294,-294,-294,-456,-388,-385,-384,-384,-377,-477,-466,-439,-349,-445,-349,-663,-604,-1534,-783,-29974,-697,-29976,-29977,-29969,-29971,-29981,-29982]} 1. Nf3 {[%emt 0:00:04]} Nf6 {[%emt 0:00:09]} 2. c4 {[%emt 0:00:06]} c5 {[%emt 0:00:13]} 3. Nc3 {[%emt 0:00:33]} Nc6 {[%emt 0:00:23]} 4. e4 {[%emt 0:02:40]} e6 {[%emt 0:04:29]} 5. Be2 {[%emt 0:00:08]} Qc7 {[%emt 0:02:33]} 6. d4 {[%emt 0:02:16]} cxd4 {[%emt 0:00:09]} 7. Nxd4 {[%emt 0:00:01]} a6 {[%emt 0:05:39]} 8. a3 {[%emt 0:08:41] B41: Sicilian: Kan Variation: 5 c4.} Nxd4 {[%emt 0:04:10] 8...Bc5 is setting a new trend.} 9. Qxd4 {[%emt 0:00:15] aiming for e5.} Bd6 {[%emt 0:00:53][%cal Bf8d6,Bd6c5,Bc5d4][%mdl 32] Prevents e5.} 10. Qe3 {[%emt 0:04:27] White is slightly better.} O-O {[%emt 0:11:12]} 11. f4 {[%emt 0:10:17]} Bc5 {[%emt 0:00:36] [#]} 12. Qg3 $146 {[%emt 0:01:05]} ({Predecessor:} 12. Qd3 d5 13. b4 dxe4 14. Nxe4 Nxe4 15. Qxe4 f5 16. Qf3 Bd4 17. Rb1 b5 18. Bb2 {0-1 (61) Liebert,H-Shamkovich,L Sochi 1967}) 12... b5 {[%emt 0:06:20]} 13. e5 {[%emt 0:08:58]} (13. cxb5 axb5 14. e5 (14. Bxb5 d5 $17) 14... Nd5 15. Nxd5 exd5 $15) 13... Ne8 {[%emt 0:00:23]} 14. b4 {[%emt 0:07:09]} Bd4 {[%emt 0:02:02]} 15. Qd3 {[%emt 0:02:00]} (15. Bb2 $1 $11 {and White has nothing to worry.} bxc4 16. O-O-O) 15... Qxc4 $19 {[%emt 0:01:11]} 16. Qxc4 {[%emt 0:00:27]} bxc4 {[%emt 0:00:03]} 17. Bb2 {[%emt 0:00:21]} Bb7 $36 {[%emt 0:01:03][%mdl 2048] White is under strong pressure.} 18. h4 {[%emt 0:07:43]} (18. Rd1 $142 Bxg2 19. Rxd4 Bxh1 20. Rxd7) 18... f6 {[%emt 0:04:32]} 19. Na4 {[%emt 0:00:07]} (19. Nd1 {was necessary.} Ba7 20. Bxc4) 19... fxe5 {[%emt 0:02:29]} (19... Bxg2 20. Rh2 Bxb2 21. Nxb2 $17) 20. fxe5 {[%emt 0:00:01]} Bxg2 {[%emt 0:07:53]} (20... Bxb2 21. Nxb2 c3 22. Nc4 $17) 21. Bxd4 {[%emt 0:02:49] [#] Hoping for Rg1.} Bxh1 {[%emt 0:00:02]} 22. Nb6 {[%emt 0:00:10]} Rd8 {[%emt 0:00:45]} (22... Rf4 23. Nxa8 Rxd4 24. Nb6 $17) 23. Bxc4 {[%emt 0:00:22]} Nc7 {[%emt 0:01:07]} 24. Bc5 {[%emt 0:00:53]} Rf4 {[%emt 0:03:29]} 25. O-O-O {[%emt 0:00:12]} Bc6 {[%emt 0:01:09]} ({Stronger than} 25... Rxh4 26. Be7 Rxc4+ 27. Nxc4 $17) 26. Bb3 {[%emt 0:04:38]} Kf7 {[%emt 0:04:24]} 27. h5 {[%emt 0:05:22]} Rb8 {[%emt 0:02:50]} 28. Bc2 {[%emt 0:03:27]} Nd5 {[%emt 0:12:45]} 29. Nxd5 {[%emt 0:02:01]} Bxd5 {[%emt 0:00:13]} 30. Bxh7 {[%emt 0:00:46]} Rf3 {[%emt 0:01:00]} 31. Rd4 {[%emt 0:02:52]} a5 {[%emt 0:01:40]} (31... Rxa3 $2 32. Rf4+ Ke8 33. Rf8#) 32. Kd2 {[%emt 0:00:03]} ({But not} 32. Bg6+ Kg8 33. Rd3 Rf4 $17) 32... axb4 {[%emt 0:00:22]} (32... Rxa3 $2 {gets mated.} 33. Rf4+ Ke8 34. Rf8#) 33. Bxb4 {[%emt 0:00:06]} Bc6 {[%emt 0:02:26]} ({Black should try} 33... g5 $17 {And now ...Kg7 would win.} 34. hxg6+ Kg7) 34. Ke2 $2 {[%emt 0:01:21] [#]} (34. Rg4 $1 $15) 34... Rb5 $1 {[%emt 0:01:13]} 35. Bg6+ {[%emt 0:05:33]} (35. Rxd7+ {was the only defense.} Bxd7 36. Kxf3) 35... Kg8 {[%emt 0:00:13]} 36. Bd6 {[%emt 0:00:03]} Rh3 {[%emt 0:04:52] Threatens to win with ...Rb2+.} 37. Rb4 {[%emt 0:00:24] Inhibits Rb2+.} (37. Rf4 $142 Rb2+ 38. Ke1 Re3+ 39. Kd1) 37... Rxa3 {[%emt 0:01:19]} 38. Rxb5 {[%emt 0:01:05]} Bxb5+ {[%emt 0:00:07][%mdl 4096] Endgame KRB-KB} 39. Kf2 {[%emt 0:00:29]} Rb3 {[%emt 0:00:17]} 40. Kg2 {[%emt 0:00:23]} Bc6+ {[%emt 0:01:21]} 41. Kh2 {[%emt 0:30:28]} Bf3 {[%emt 0:30:36]} 42. Be8 {[%emt 0:04:14]} Bg4 {[%emt 0:00:19]} 43. Bxd7 $2 {[%emt 0:02:25]} (43. Bg6) 43... Kf7 {[%emt 0:01:15]} 44. h6 {[%emt 0:00:24]} gxh6 {[%emt 0:00:33][%cal Bg7h6,Bh6h5,Bh5h4][%mdl 32] ( -> ...Rc3)} 45. Ba4 {[%emt 0:00:24]} Re3 {[%emt 0:00:06]} (45... Rc3 $142 46. Bb5 h5 47. Ba6 h4 48. Kg1 Rb3 49. Bf1 h3 50. Kh2 Rf3 51. Kg1 h2+ 52. Kxh2 Rxf1 53. Kg3 Bh5 54. Kg2 Rf3 55. Kg1 Kg6 56. Kh2 Kf5 57. Kg1 Kf4 58. Bb4 Kxe5 59. Be1 Kf4 60. Kh2 e5 61. Bd2+ Kf5 62. Bh6 e4 63. Kg1 e3 64. Kh1 e2 65. Bd2 Kg4 66. Kh2 Bg6 67. Kg2 Rf1 68. Bh6 Be4+ 69. Kh2 Rh1#) 46. Bc6 {[%emt 0:00:04]} h5 {[%emt 0:00:11] Black mates.} 47. Kg2 {[%emt 0:00:05]} h4 {[%emt 0:00:32]} 48. Kf2 {[%emt 0:00:01]} Re2+ {[%emt 0:00:07] Weighted Error Value: White=0.83/Black=0.34} 0-1

[Event "1st Serbian League 2022"]
[Site "Vrnjacka Banja"]
[Date "2022.09.22"]
[Round "3.15"]
[White "Gagunashvili, Merab"]
[Black "Tadic, Branko"]
[Result "*"]
[ECO "B77"]
[WhiteElo "2552"]
[BlackElo "2455"]
[Annotator "TA"]
[PlyCount "40"]
[EventDate "2022.09.20"]
[EventType "team-tourn"]
[EventCountry "SRB"]
[SourceTitle "playchess.com"]
[Source "ChessBase"]
[SourceQuality "1"]
[TimeControl "40/5400+30:1800+30"]

{[%evp 19,27,12,40,0,22,0,0,0,27,27]} 1. e4 {[%emt 0:00:05]} c5 {[%emt 0:00:51]} 2. Nf3 {[%emt 0:00:26]} Nc6 {[%emt 0:00:05]} 3. Nc3 {[%emt 0:00:14]} g6 {[%emt 0:00:09]} 4. d4 {[%emt 0:00:15]} cxd4 {[%emt 0:00:04]} 5. Nxd4 {[%emt 0:00:10]} Bg7 {[%emt 0:00:05]} 6. Be3 {[%emt 0:00:07]} Nf6 {[%emt 0:00:10]} 7. Bc4 {[%emt 0:01:11]} O-O {[%emt 0:01:18]} 8. Bb3 {[%emt 0:00:16]} d6 {[%emt 0:02:25]} 9. f3 {[%emt 0:00:24]} Bd7 {[%emt 1:29:53]} 10. Qd2 {[%emt 0:00:12]} Na5 {[%emt 1:28:51]} 11. Bh6 {[%emt 0:03:09] B77: Sicilian Dragon: Yugoslav Attack, 9 Bc4 sidelines.} Nxb3 {[%emt 0:09:18]} 12. axb3 {[%emt 1:30:01]} Bxh6 {[%emt 0:06:04]} 13. Qxh6 {[%emt 0:01:51]} Qb6 {[%emt 0:21:37]} 14. Rd1 {[%emt 0:11:48] [#] An interesting draw.} {Predecessor:} Rac8 $146 15. h4 e5 16. Nde2 Be6 17. g4 Bxg4 18. fxg4 Nxg4 19. Qg5 Rxc3 20. bxc3 Nf2 {1-0 (39) Michelakos,P (2244)-Gkogkas,D (2038) Rio Achaea 2018} *

[Event "1st Serbian League 2022"]
[Site "Vrnjacka Banja"]
[Date "2022.09.22"]
[Round "3.15"]
[White "Milenkovic, Mladen"]
[Black "Pap, Misa"]
[Result "0-1"]
[ECO "B77"]
[WhiteElo "2379"]
[BlackElo "2381"]
[Annotator "TA"]
[PlyCount "117"]
[EventDate "2022.09.20"]
[EventType "team-tourn"]
[EventCountry "SRB"]
[SourceTitle "playchess.com"]
[Source "ChessBase"]
[SourceQuality "1"]
[TimeControl "40/5400+30:1800+30"]

{[%evp 19,117,20,42,0,8,0,0,0,11,12,27,22,29,28,23,21,12,0,0,0,0,-16,-10,-25,64,0,0,-6,0,-6,16,8,14,29,20,1,20,0,0,0,8,8,9,0,0,0,0,0,0,0,0,0,0,-162,-152,-156,-154,-161,-159,-179,-172,-153,-156,-194,-195,-199,-143,-149,0,-194,-202,-259,-335,-283,-198,-278,-256,-365,-363,-363,-357,-366,-358,-337,-322,-322,-368,-375,-356,-354,-312,-342,-333,-530,-525,-525,-520,-501,-477,-339]} 1. e4 {[%emt 0:00:05]} c5 {[%emt 0:00:51]} 2. Nf3 {[%emt 0:00:26]} Nc6 {[%emt 0:00:05]} 3. Nc3 {[%emt 0:00:14]} g6 {[%emt 0:00:09]} 4. d4 {[%emt 0:00:15]} cxd4 {[%emt 0:00:04]} 5. Nxd4 {[%emt 0:00:10]} Bg7 {[%emt 0:00:05]} 6. Be3 {[%emt 0:00:07]} Nf6 {[%emt 0:00:10]} 7. Bc4 {[%emt 0:01:11]} O-O {[%emt 0:01:18]} 8. Bb3 {[%emt 0:00:16]} d6 {[%emt 0:02:25]} 9. f3 {[%emt 0:00:24]} Bd7 {[%emt 0:01:32]} 10. Qd2 {[%emt 0:00:12]} Na5 {[%emt 0:00:05]} 11. Bh6 {[%emt 0:03:09] B77: Sicilian Dragon: Yugoslav Attack, 9 Bc4 sidelines.} Nxb3 {[%emt 0:09:18]} 12. axb3 {[%emt 0:12:34]} Bxh6 {[%emt 0:06:04]} 13. Qxh6 {[%emt 0:01:51] The position is equal.} Qb6 {[%emt 0:21:37]} 14. Rd1 {[%emt 0:11:48]} Rac8 {[%emt 0:14:40]} 15. h4 {[%emt 0:10:04][%cal Oh4h5] [#]} Qa5 $146 {[%emt 0:06:31] Prevents h5.} ({Predecessor:} 15... e5 16. Nde2 Be6 17. g4 Bxg4 18. fxg4 Nxg4 19. Qg5 Rxc3 20. bxc3 Nf2 21. Rf1 Nxe4 {1-0 (39) Michelakos,P (2244)-Gkogkas,D (2038) Rio Achaea 2018}) 16. h5 {[%emt 0:25:46]} Nxh5 {[%emt 0:00:41]} 17. g4 {[%emt 0:01:15]} Nf6 {[%emt 0:01:25]} 18. Ke2 {[%emt 0:00:22][%cal Oc3d5] And now Nd5! would win.} Rxc3 {[%emt 0:11:05] The board is on fire.} 19. bxc3 {[%emt 0:01:40]} Qxc3 {[%emt 0:00:02]} 20. Rd3 {[%emt 0:13:02]} Qc5 {[%emt 0:01:34]} 21. c4 {[%emt 0:00:04][%cal Od4f5]} Rc8 {[%emt 0:01:08] [#]} (21... b5 $11) 22. Nc2 {[%emt 0:00:53]} (22. Nf5 $1 $14 Bxf5 (22... gxf5 23. Rd5) 23. exf5 (23. gxf5 a6 $11)) 22... Qe5 {[%emt 0:01:46]} 23. Ne3 {[%emt 0:01:48]} Be6 {[%emt 0:00:51]} ({Don't play} 23... Qb2+ 24. Rd2 Qe5 25. Nd5 $16) 24. Qh2 {[%emt 0:10:05]} Qxh2+ {[%emt 0:10:35]} 25. Rxh2 {[%emt 0:00:01]} h5 {[%emt 0:00:14]} 26. gxh5 {[%emt 0:02:05]} Nxh5 {[%emt 0:00:02] aiming for ...Nf4+.} 27. Kf2 {[%emt 0:00:11]} Rc6 {[%emt 0:04:29]} 28. Nd5 {[%emt 0:00:41]} Bxd5 {[%emt 0:00:55]} 29. exd5 $11 {[%emt 0:00:05][%mdl 4096] Endgame KRR-KRN} Rc5 {[%emt 0:00:06]} 30. Ke3 {[%emt 0:00:45]} b5 {[%emt 0:00:05]} 31. Rc2 {[%emt 0:01:55]} a5 {[%emt 0:00:46]} 32. Rd1 {[%emt 0:00:47]} Nf6 {[%emt 0:00:59]} 33. Kd3 {[%emt 0:01:17]} Nd7 {[%emt 0:01:10]} 34. f4 {[%emt 0:00:49]} Nb6 {[%emt 0:00:36]} 35. Ra1 {[%emt 0:01:00]} Kg7 {[%emt 0:01:32]} 36. Kd4 $2 {[%emt 0:00:40]} (36. Rcc1 $11) 36... bxc4 {[%emt 0:01:02]} 37. bxc4 {[%emt 0:00:08] [#]} Nxd5 {[%emt 0:00:15][%mdl 512]} 38. Re2 {[%emt 0:00:49] [#]} Nb4 {[%emt 0:00:59]} (38... Nxf4 39. Rxe7 Ne6+ 40. Ke3 $15) 39. Rh1 {[%emt 0:00:31] [#]} Nc6+ $1 {[%emt 0:01:33]} 40. Kd3 {[%emt 0:00:23]} Kf6 {[%emt 0:00:53]} 41. Rb1 {[%emt 0:30:39]} Nb4+ {[%emt 0:05:09]} 42. Kd4 {[%emt 0:00:00]} Rf5 {[%emt 0:00:23]} (42... Rh5 $19 43. Ke4 Na6) 43. Ke3 {[%emt 0:00:00]} Rc5 {[%emt 0:06:19]} 44. Kd4 {[%emt 0:00:00]} Rh5 {[%emt 0:02:14]} 45. Ra1 {[%emt 0:00:00]} Rh3 {[%emt 0:03:31]} 46. c5 {[%emt 0:00:00]} dxc5+ {[%emt 0:00:23]} 47. Kc4 {[%emt 0:00:00]} (47. Kxc5 $142 Nd3+ 48. Kc4) 47... Rf3 $19 {[%emt 0:01:44]} ({Weaker is} 47... Nd3 48. Rf1 $17) 48. Re4 {[%emt 0:00:00]} (48. Kxc5 $142 Rxf4 49. Rxa5) 48... e6 {[%emt 0:01:30]} 49. Kxc5 {[%emt 0:00:00]} Nd3+ {[%emt 0:00:15]} 50. Kd4 {[%emt 0:00:00]} Nxf4 {[%emt 0:00:15][%cal Oe6e5]} 51. Rxa5 {[%emt 0:00:00]} Nd5 {[%emt 0:00:48] Inhibits Re3.} 52. Re1 {[%emt 0:00:00]} g5 {[%emt 0:00:34][%cal Bg6g5,Bg5g4][%mdl 32]} 53. Ra8 {[%emt 0:00:00]} Ne7 {[%emt 0:00:31]} 54. Ke4 {[%emt 0:00:00]} Rf4+ {[%emt 0:00:14]} 55. Kd3 {[%emt 0:00:00]} g4 {[%emt 0:00:42]} 56. Rg1 {[%emt 0:00:00]} (56. Kd2 $142) 56... Ng6 {[%emt 0:00:32] Black is clearly winning.} 57. Ke3 {[%emt 0:00:00]} e5 {[%emt 0:00:11]} 58. Ke2 {[%emt 0:00:00]} Kg5 {[%emt 0:00:28]} 59. Rb8 {[%emt 0:09:33] Weighted Error Value: White=0.21 (precise) /Black=0.12 (very precise)} 0-1

[Event "1st Serbian League 2022"]
[Site "Vrnjacka Banja"]
[Date "2022.09.22"]
[Round "3.16"]
[White "Gagunashvili, Merab"]
[Black "Tadic, Branko"]
[Result "1/2-1/2"]
[ECO "E97"]
[WhiteElo "2552"]
[BlackElo "2455"]
[Annotator "TA"]
[PlyCount "60"]
[EventDate "2022.09.20"]
[EventType "team-tourn"]
[EventCountry "SRB"]
[SourceTitle "playchess.com"]
[Source "ChessBase"]
[SourceQuality "1"]
[TimeControl "40/5400+30:1800+30"]

{[%evp 18,60,43,37,51,48,50,41,57,49,83,49,104,68,105,99,90,79,90,76,84,113,126,128,118,122,208,66,284,263,245,123,128,0,0,0,0,0,0,0,0,0,0,0,0]} 1. d4 {[%emt 0:00:05]} Nf6 {[%emt 0:06:27]} 2. c4 {[%emt 0:00:10]} g6 {[%emt 0:00:09]} 3. Nc3 {[%emt 0:00:10]} Bg7 {[%emt 0:00:07]} 4. e4 {[%emt 0:00:16]} d6 {[%emt 0:00:14]} 5. Nf3 {[%emt 0:00:24]} O-O {[%emt 0:00:09]} 6. Be2 {[%emt 0:00:04]} e5 {[%emt 0:00:26]} 7. O-O {[%emt 0:00:18]} Nc6 {[%emt 0:01:06]} 8. d5 {[%emt 0:00:24]} Ne7 {[%emt 0:00:06]} 9. b4 {[%emt 0:00:35]} Ne8 {[%emt 0:04:58]} 10. a4 {[%emt 0:07:40] seems to push 10.c5 aside.} f5 {[%emt 0:00:22] E97: King's Indian: Classical Main Line (6...e5 7 0-0 Nc6): 8 Be3 and 8 d5 Ne7, not 9 Ne1.} 11. a5 {[%emt 0:01:36]} Nf6 {[%emt 0:00:18]} 12. Ra3 {[%emt 0:07:54] [#]} Kh8 $146 {[%emt 0:04:17] White is slightly better.} ({Predecessor:} 12... h6 13. Nd2 g5 14. c5 Rf7 15. a6 b6 16. cxd6 cxd6 17. Qc2 g4 18. Nb5 Ne8 {1-0 (66) Donchenko,A (2657)-Gazik,V (2502) Skalica 2020}) 13. Bg5 {[%emt 0:07:36]} Neg8 {[%emt 0:08:00]} 14. c5 {[%emt 0:06:49]} Qd7 {[%emt 0:23:38]} (14... h6 $14 15. Bxf6 Nxf6) 15. Nd2 {[%emt 0:11:59]} Bh6 {[%emt 0:15:30]} 16. Bxh6 {[%emt 0:05:42]} Nxh6 {[%emt 0:00:32]} 17. a6 $36 {[%emt 0:00:37][%mdl 2048] White has strong initiative.} bxa6 {[%emt 0:07:55]} 18. Bxa6 {[%emt 0:02:37]} Bxa6 {[%emt 0:00:36]} 19. Rxa6 {[%emt 0:00:05]} Nxe4 {[%emt 0:00:24]} 20. Ndxe4 {[%emt 0:01:56]} fxe4 {[%emt 0:00:06]} 21. Nxe4 {[%emt 0:08:22][%cal Rc5d6]} Qb5 {[%emt 0:11:44] [#]} (21... Nf5 $16 {might work better.}) 22. Qa1 {[%emt 0:19:45]} (22. Rc6 $1 $18) 22... Rf4 $2 {[%emt 0:10:03]} (22... Qxb4 $14 23. Ra4 Qb3) 23. f3 $18 {[%emt 0:02:28]} Qxb4 {[%emt 0:01:52]} 24. cxd6 {[%emt 0:07:32]} ({White should try} 24. Rc6 $18) 24... cxd6 $16 {[%emt 0:00:07]} 25. g3 {[%emt 0:01:40]} ({Don't do} 25. Nxd6 Rd4 $14) (25. Rb1 $16 Qd4+ 26. Qxd4 exd4 27. Rd1 (27. Rxd6 a5 $16) (27. Nxd6 Rd8 $16)) 25... Rxe4 {[%emt 0:00:51] The position is equal.} 26. fxe4 {[%emt 0:00:16]} Qxe4 {[%emt 0:00:01]} 27. Rxd6 {[%emt 0:04:11] [#] aiming for Re1.} ({Wrong is} 27. Rxa7 $2 Qe3+ 28. Kh1 Rxa7 $19) 27... Qe3+ {[%emt 0:00:54]} 28. Kg2 {[%emt 0:00:19]} Qe4+ {[%emt 0:00:01]} (28... Nf5 29. Rd7 $16) 29. Kg1 {[%emt 0:00:25] Black must now prevent Re1. Active counter play!} Qe3+ {[%emt 0:00:08]} 30. Kg2 {[%emt 0:00:13]} Qe4+ {[%emt 0:00:04] Weighted Error Value: White=0.30/Black=0.29 (precise)} ({Much less strong is} 30... Nf5 31. Rd7 $16) 1/2-1/2

[Event "1st Serbian League 2022"]
[Site "Vrnjacka Banja"]
[Date "2022.09.22"]
[Round "3.16"]
[White "Milenkovic, Mladen"]
[Black "Pap, Misa"]
[Result "*"]
[ECO "E97"]
[WhiteElo "2379"]
[BlackElo "2381"]
[Annotator "TA"]
[PlyCount "28"]
[EventDate "2022.09.20"]
[EventType "team-tourn"]
[EventCountry "SRB"]
[SourceTitle "playchess.com"]
[Source "ChessBase"]
[SourceQuality "1"]
[TimeControl "40/5400+30:1800+30"]

{[%evp 18,28,39,33,51,46,53,50,53,46,82,50,84]} 1. d4 {[%emt 0:00:05]} Nf6 {[%emt 0:06:27]} 2. c4 {[%emt 0:00:10]} g6 {[%emt 0:00:09]} 3. Nc3 {[%emt 0:00:10]} Bg7 {[%emt 0:00:07]} 4. e4 {[%emt 0:00:16]} d6 {[%emt 0:00:14]} 5. Nf3 {[%emt 0:00:24]} O-O {[%emt 0:00:09]} 6. Be2 {[%emt 0:00:04]} e5 {[%emt 0:00:26]} 7. O-O {[%emt 0:00:18]} Nc6 {[%emt 0:01:06]} 8. d5 {[%emt 0:00:24]} Ne7 {[%emt 0:00:06]} 9. b4 {[%emt 0:00:35]} Ne8 {[%emt 1:26:16]} 10. a4 {[%emt 0:07:40][%cal Ba2a4,Ba4a5][%mdl 32] now supersedes 10.c5.} f5 {[%emt 1:21:48] E97: King's Indian: Classical Main Line (6...e5 7 0-0 Nc6): 8 Be3 and 8 d5 Ne7, not 9 Ne1.} 11. a5 {[%emt 0:01:36]} Nf6 {[%emt 0:00:18]} 12. Ra3 {[%emt 0:07:54] [#]} Kh8 $146 {[%emt 1:22:08]} ({Predecessor:} 12... h6 13. Nd2 g5 14. c5 Rf7 15. a6 b6 16. cxd6 cxd6 17. Qc2 g4 18. Nb5 Ne8 {1-0 (66) Donchenko,A (2657)-Gazik,V (2502) Skalica 2020}) 13. Bg5 {[%emt 0:07:36]} Neg8 {[%emt 0:08:00]} 14. c5 {[%emt 0:06:49] White is more active.} Qd7 {[%emt 0:23:38] Black got outplayed after the opening.  Weighted Error Value: White=0.09 (flawless) /Black=0.16 (very precise)} *